[Event "Titled Tuesday Blitz April 25 Late 2023"]
[White "Musovic, Armin"]
[Black "Harish, Neeraj"]
[WhiteFideId "939935"]
[BlackFideId "30958130"]
[WhiteElo "2322"]
[BlackElo "1965"]
[Result "1/2-1/2"]
[Round "06"]
[TimeControl "180+2"]
[Date "2023.04.25"]
[WhiteClock "0:00:13"]
[BlackClock "0:00:16"]

1. a3 {[%clk 0:03:00]}  d5 {[%clk 0:02:53]} 2. Nc3 {[%clk 0:03:01]}  Nf6 {[%clk 0:02:53]} 3. d3 {[%clk 0:03:01]}  e6 {[%clk 0:02:53]} 4. Bg5 {[%clk 0:03:01]}  Be7 {[%clk 0:02:53]} 5. e4 {[%clk 0:03:02]}  d4 {[%clk 0:02:51]} 6. Nce2 {[%clk 0:03:02]}  e5 {[%clk 0:02:52]} 7. Ng3 {[%clk 0:03:00]}  h6 {[%clk 0:02:50]} 8. Bd2 {[%clk 0:02:58]}  Bg4 {[%clk 0:02:47]} 9. N1e2 {[%clk 0:02:54]}  Nc6 {[%clk 0:02:45]} 10. h3 {[%clk 0:02:54]}  Be6 {[%clk 0:02:44]} 11. f4 {[%clk 0:02:44]}  exf4 {[%clk 0:02:34]} 12. Nxf4 {[%clk 0:02:45]}  Bd6 {[%clk 0:02:21]} 13. Qf3 {[%clk 0:02:42]}  Ne5 {[%clk 0:02:20]} 14. Qf2 {[%clk 0:02:43]}  O-O {[%clk 0:02:19]} 15. Be2 {[%clk 0:02:42]}  c5 {[%clk 0:02:16]} 16. O-O {[%clk 0:02:41]}  Nfd7 {[%clk 0:02:08]} 17. Ngh5 {[%clk 0:02:21]}  g6 {[%clk 0:01:49]} 18. Nxe6 {[%clk 0:02:09]}  fxe6 {[%clk 0:01:46]} 19. Qg3 {[%clk 0:02:08]}  Kh7 {[%clk 0:01:38]} 20. Nf4 {[%clk 0:02:00]}  Qe7 {[%clk 0:01:26]} 21. Rf2 {[%clk 0:01:50]}  g5 {[%clk 0:01:24]} 22. Nh5 {[%clk 0:01:25]}  Nc4 {[%clk 0:01:17]} 23. Rxf8 {[%clk 0:01:14]}  Rxf8 {[%clk 0:01:16]} 24. Qe1 {[%clk 0:01:13]}  Nxd2 {[%clk 0:01:08]} 25. Qxd2 {[%clk 0:01:13]}  Qf7 {[%clk 0:01:08]} 26. Rf1 {[%clk 0:01:11]}  Qe7 {[%clk 0:01:06]} 27. Rxf8 {[%clk 0:01:01]}  Qxf8 {[%clk 0:01:07]} 28. Bg4 {[%clk 0:00:51]}  Qf7 {[%clk 0:01:02]} 29. Qf2 {[%clk 0:00:42]}  Qxf2+ {[%clk 0:00:55]} 30. Kxf2 {[%clk 0:00:43]}  Nf8 {[%clk 0:00:55]} 31. a4 {[%clk 0:00:31]}  Kg6 {[%clk 0:00:52]} 32. Be2 {[%clk 0:00:27]}  Nd7 {[%clk 0:00:45]} 33. b3 {[%clk 0:00:25]}  Nf6 {[%clk 0:00:43]} 34. Nxf6 {[%clk 0:00:14]}  Kxf6 {[%clk 0:00:44]} 35. Bh5 {[%clk 0:00:13]}  Bc7 {[%clk 0:00:38]} 36. Kf3 {[%clk 0:00:12]}  a6 {[%clk 0:00:37]} 37. Be8 {[%clk 0:00:12]}  b6 {[%clk 0:00:27]} 38. Bd7 {[%clk 0:00:10]}  Bf4 {[%clk 0:00:23]} 39. Kg4 {[%clk 0:00:10]}  e5 {[%clk 0:00:20]} 40. Kh5 {[%clk 0:00:09]}  Kg7 {[%clk 0:00:20]} 41. Be8 {[%clk 0:00:07]}  a5 {[%clk 0:00:20]} 42. Bg6 {[%clk 0:00:06]}  Bc1 {[%clk 0:00:19]} 43. Bf5 {[%clk 0:00:06]}  Bd2 {[%clk 0:00:19]} 44. Bc8 {[%clk 0:00:07]}  Bc1 {[%clk 0:00:19]} 45. Kg4 {[%clk 0:00:07]}  Kf6 {[%clk 0:00:19]} 46. Kh5 {[%clk 0:00:08]}  Kg7 {[%clk 0:00:19]} 47. Bb7 {[%clk 0:00:08]}  Bd2 {[%clk 0:00:19]} 48. Kg4 {[%clk 0:00:08]}  Kf6 {[%clk 0:00:18]} 49. Bc8 {[%clk 0:00:08]}  Bc1 {[%clk 0:00:17]} 50. Bf5 {[%clk 0:00:08]}  Bd2 {[%clk 0:00:17]} 51. g3 {[%clk 0:00:09]}  Bc1 {[%clk 0:00:17]} 52. Kf3 {[%clk 0:00:09]}  Bd2 {[%clk 0:00:17]} 53. Ke2 {[%clk 0:00:10]}  Bc1 {[%clk 0:00:17]} 54. Ke1 {[%clk 0:00:10]}  Bb2 {[%clk 0:00:17]} 55. Kd1 {[%clk 0:00:11]}  Bc3 {[%clk 0:00:17]} 56. Ke2 {[%clk 0:00:11]}  Bb2 {[%clk 0:00:17]} 57. Kf3 {[%clk 0:00:12]}  Bc1 {[%clk 0:00:17]} 58. Kg4 {[%clk 0:00:12]}  Be3 {[%clk 0:00:17]} 59. h4 {[%clk 0:00:13]}  gxh4 {[%clk 0:00:17]} 60. Kxh4 {[%clk 0:00:12]}  Bg5+ {[%clk 0:00:14]} 61. Kh5 {[%clk 0:00:12]}  Kg7 {[%clk 0:00:15]} 62. Bc8 {[%clk 0:00:12]}  Kf6 {[%clk 0:00:15]} 63. Kg4 {[%clk 0:00:11]}  Be3 {[%clk 0:00:15]} 64. Bd7 {[%clk 0:00:11]}  Bg5 {[%clk 0:00:15]} 65. Be8 {[%clk 0:00:12]}  Be3 {[%clk 0:00:15]} 66. Bd7 {[%clk 0:00:12]}  Bg5 {[%clk 0:00:16]} 67. Kf3 {[%clk 0:00:12]}  Be3 {[%clk 0:00:16]} 68. Kg4 {[%clk 0:00:13]} 1/2-1/2


[Site "https://www.chess.com"]

[Event "Titled Tuesday Blitz April 25 Late 2023"]
[White "Perske, Thore"]
[Black "Harriott, Tyrell"]
[WhiteFideId "12902195"]
[BlackFideId "2086484"]
[WhiteElo "2336"]
[BlackElo "2107"]
[Result "0-1"]
[Round "06"]
[TimeControl "180+2"]
[Date "2023.04.25"]
[WhiteClock "0:00:14"]
[BlackClock "0:01:27"]

1. d4 {[%clk 0:03:00]}  e6 {[%clk 0:02:59]} 2. g3 {[%clk 0:03:01]}  d5 {[%clk 0:02:59]} 3. Bg2 {[%clk 0:03:01]}  Bd6 {[%clk 0:02:59]} 4. Nf3 {[%clk 0:03:01]}  f5 {[%clk 0:03:00]} 5. O-O {[%clk 0:03:02]}  Nf6 {[%clk 0:03:00]} 6. c4 {[%clk 0:03:03]}  c6 {[%clk 0:03:00]} 7. Nc3 {[%clk 0:03:03]}  O-O {[%clk 0:02:59]} 8. Bf4 {[%clk 0:03:03]}  Bxf4 {[%clk 0:02:58]} 9. gxf4 {[%clk 0:03:04]}  Nbd7 {[%clk 0:02:58]} 10. e3 {[%clk 0:03:03]}  b6 {[%clk 0:02:58]} 11. b3 {[%clk 0:03:02]}  Ba6 {[%clk 0:02:56]} 12. Qe2 {[%clk 0:02:59]}  Ne4 {[%clk 0:02:55]} 13. Nxe4 {[%clk 0:02:57]}  fxe4 {[%clk 0:02:55]} 14. Ne5 {[%clk 0:02:56]}  Nxe5 {[%clk 0:02:55]} 15. fxe5 {[%clk 0:02:56]}  Qh4 {[%clk 0:02:54]} 16. f4 {[%clk 0:02:48]}  Rf5 {[%clk 0:02:40]} 17. Qf2 {[%clk 0:02:31]}  Qh6 {[%clk 0:02:34]} 18. Rfc1 {[%clk 0:02:24]}  g5 {[%clk 0:02:27]} 19. cxd5 {[%clk 0:01:54]}  cxd5 {[%clk 0:02:27]} 20. Rc7 {[%clk 0:01:51]}  gxf4 {[%clk 0:02:22]} 21. exf4 {[%clk 0:01:22]}  Kh8 {[%clk 0:02:17]} 22. Kh1 {[%clk 0:00:39]}  Rh5 {[%clk 0:01:45]} 23. Bf1 {[%clk 0:00:34]}  e3 {[%clk 0:01:31]} 24. Qc2 {[%clk 0:00:25]}  e2 {[%clk 0:01:28]} 25. Bxe2 {[%clk 0:00:14]}  Rxh2+ {[%clk 0:01:27]} 0-1


[Site "https://www.chess.com"]

[Event "Titled Tuesday Blitz April 25 Late 2023"]
[White "Luong Phuong Hanh"]
[Black "Martinez Ramirez, Lennis"]
[WhiteFideId "12401013"]
[BlackFideId "3509079"]
[WhiteElo "2081"]
[BlackElo "2410"]
[Result "0-1"]
[Round "06"]
[TimeControl "180+2"]
[Date "2023.04.25"]
[WhiteClock "0:00:01"]
[BlackClock "0:00:57"]

1. d4 {[%clk 0:03:00]}  Nf6 {[%clk 0:02:57]} 2. Nf3 {[%clk 0:03:00]}  c5 {[%clk 0:02:56]} 3. d5 {[%clk 0:03:00]}  b5 {[%clk 0:02:55]} 4. Bg5 {[%clk 0:02:59]}  Ne4 {[%clk 0:02:48]} 5. Bf4 {[%clk 0:02:57]}  Qa5+ {[%clk 0:02:41]} 6. c3 {[%clk 0:02:57]}  Bb7 {[%clk 0:02:41]} 7. e3 {[%clk 0:02:53]}  a6 {[%clk 0:02:39]} 8. Be2 {[%clk 0:02:53]}  d6 {[%clk 0:02:38]} 9. O-O {[%clk 0:02:53]}  Nd7 {[%clk 0:02:38]} 10. a4 {[%clk 0:02:51]}  b4 {[%clk 0:02:37]} 11. c4 {[%clk 0:02:49]}  g6 {[%clk 0:02:35]} 12. Nbd2 {[%clk 0:02:48]}  Nxd2 {[%clk 0:02:33]} 13. Nxd2 {[%clk 0:02:46]}  Bg7 {[%clk 0:02:34]} 14. Qc2 {[%clk 0:02:42]}  O-O {[%clk 0:02:33]} 15. Rad1 {[%clk 0:02:33]}  Rad8 {[%clk 0:02:28]} 16. b3 {[%clk 0:02:34]}  Qc7 {[%clk 0:02:27]} 17. e4 {[%clk 0:02:33]}  e5 {[%clk 0:02:25]} 18. Be3 {[%clk 0:02:25]}  f5 {[%clk 0:02:24]} 19. exf5 {[%clk 0:02:22]}  gxf5 {[%clk 0:02:25]} 20. f4 {[%clk 0:02:19]}  e4 {[%clk 0:02:22]} 21. Kh1 {[%clk 0:02:19]}  Nf6 {[%clk 0:02:22]} 22. Rg1 {[%clk 0:02:17]}  Bc8 {[%clk 0:02:22]} 23. Rdf1 {[%clk 0:02:12]}  Rde8 {[%clk 0:02:22]} 24. Qd1 {[%clk 0:02:07]}  Kh8 {[%clk 0:02:21]} 25. Qe1 {[%clk 0:02:08]}  Rg8 {[%clk 0:02:20]} 26. Qh4 {[%clk 0:02:07]}  Qf7 {[%clk 0:02:19]} 27. h3 {[%clk 0:02:03]}  a5 {[%clk 0:02:12]} 28. g4 {[%clk 0:02:02]}  fxg4 {[%clk 0:02:09]} 29. hxg4 {[%clk 0:02:01]}  Nxd5 {[%clk 0:01:29]} 30. cxd5 {[%clk 0:01:59]}  Bd4 {[%clk 0:01:29]} 31. Nc4 {[%clk 0:01:22]}  Qxd5 {[%clk 0:01:29]} 32. Bxd4+ {[%clk 0:01:14]}  cxd4 {[%clk 0:01:28]} 33. Qf6+ {[%clk 0:01:14]}  Rg7 {[%clk 0:01:29]} 34. Qxd6 {[%clk 0:01:08]}  Bb7 {[%clk 0:01:20]} 35. Qxd5 {[%clk 0:01:00]}  Bxd5 {[%clk 0:01:21]} 36. Kh2 {[%clk 0:00:59]}  d3 {[%clk 0:01:19]} 37. Bd1 {[%clk 0:00:17]}  Bxc4 {[%clk 0:01:19]} 38. bxc4 {[%clk 0:00:17]}  e3 {[%clk 0:01:20]} 39. f5 {[%clk 0:00:14]}  e2 {[%clk 0:01:19]} 40. Bxe2 {[%clk 0:00:14]}  dxe2 {[%clk 0:01:19]} 41. Re1 {[%clk 0:00:14]}  Rc7 {[%clk 0:01:19]} 42. Rg2 {[%clk 0:00:09]}  Rxc4 {[%clk 0:01:17]} 43. Kh3 {[%clk 0:00:09]}  Rce4 {[%clk 0:01:14]} 44. Kh4 {[%clk 0:00:09]}  Kg7 {[%clk 0:01:14]} 45. Kh5 {[%clk 0:00:08]}  Re3 {[%clk 0:01:12]} 46. g5 {[%clk 0:00:07]}  R8e4 {[%clk 0:01:12]} 47. f6+ {[%clk 0:00:08]}  Kf7 {[%clk 0:01:12]} 48. Rh2 {[%clk 0:00:07]}  b3 {[%clk 0:01:12]} 49. Kh6 {[%clk 0:00:07]}  Kg8 {[%clk 0:01:09]} 50. f7+ {[%clk 0:00:02]}  Kxf7 {[%clk 0:01:03]} 51. Kxh7 {[%clk 0:00:03]}  Re7 {[%clk 0:01:03]} 52. g6+ {[%clk 0:00:02]}  Kf6+ {[%clk 0:01:04]} 53. Kh6 {[%clk 0:00:02]}  Rf3 {[%clk 0:01:01]} 54. Kh5 {[%clk 0:00:01]}  b2 {[%clk 0:00:59]} 55. Kh6 {[%clk 0:00:01]}  Ree3 {[%clk 0:00:57]} 0-1


[Site "https://www.chess.com"]

[Event "Titled Tuesday Blitz April 25 Late 2023"]
[White "Fiorito, Francisco"]
[Black "Ansh M Shah"]
[WhiteFideId "180165"]
[BlackFideId "25033379"]
[WhiteElo "2341"]
[BlackElo "2084"]
[Result "1-0"]
[Round "06"]
[TimeControl "180+2"]
[Date "2023.04.25"]
[WhiteClock "0:00:58"]
[BlackClock "0:00:18"]

1. d4 {[%clk 0:03:00]}  Nf6 {[%clk 0:02:58]} 2. Nc3 {[%clk 0:03:00]}  b6 {[%clk 0:02:57]} 3. Bf4 {[%clk 0:02:59]}  Bb7 {[%clk 0:02:54]} 4. e3 {[%clk 0:02:59]}  d6 {[%clk 0:02:54]} 5. Qd2 {[%clk 0:02:54]}  Nbd7 {[%clk 0:02:55]} 6. h3 {[%clk 0:02:54]}  g6 {[%clk 0:02:54]} 7. Nf3 {[%clk 0:02:54]}  Bg7 {[%clk 0:02:54]} 8. Be2 {[%clk 0:02:55]}  O-O {[%clk 0:02:55]} 9. O-O {[%clk 0:02:55]}  Re8 {[%clk 0:02:55]} 10. Rfd1 {[%clk 0:02:54]}  c6 {[%clk 0:02:53]} 11. a4 {[%clk 0:02:54]}  a6 {[%clk 0:02:53]} 12. Bh2 {[%clk 0:02:53]}  Qc7 {[%clk 0:02:53]} 13. b4 {[%clk 0:02:53]}  Rad8 {[%clk 0:02:52]} 14. Rdb1 {[%clk 0:02:52]}  c5 {[%clk 0:02:49]} 15. Ra3 {[%clk 0:02:12]}  Nb8 {[%clk 0:02:15]} 16. Rab3 {[%clk 0:02:05]}  cxb4 {[%clk 0:01:54]} 17. Rxb4 {[%clk 0:02:04]}  Rc8 {[%clk 0:01:47]} 18. Rxb6 {[%clk 0:01:56]}  Qxc3 {[%clk 0:01:45]} 19. Qxc3 {[%clk 0:01:53]}  Rxc3 {[%clk 0:01:46]} 20. Rxb7 {[%clk 0:01:53]}  Rxc2 {[%clk 0:01:38]} 21. Bd3 {[%clk 0:01:40]}  Rcc8 {[%clk 0:01:22]} 22. g4 {[%clk 0:01:37]}  Nd5 {[%clk 0:01:07]} 23. a5 {[%clk 0:01:26]}  Nc6 {[%clk 0:01:01]} 24. Bxa6 {[%clk 0:01:24]}  Nxa5 {[%clk 0:00:57]} 25. R7b5 {[%clk 0:01:22]}  Nc3 {[%clk 0:00:56]} 26. Bxc8 {[%clk 0:01:16]}  Rxc8 {[%clk 0:00:52]} 27. Rb8 {[%clk 0:01:16]}  Rf8 {[%clk 0:00:37]} 28. Rxf8+ {[%clk 0:01:14]}  Bxf8 {[%clk 0:00:38]} 29. Rb8 {[%clk 0:01:13]}  Kg7 {[%clk 0:00:37]} 30. h4 {[%clk 0:01:09]}  h6 {[%clk 0:00:34]} 31. Ra8 {[%clk 0:01:04]}  Nc4 {[%clk 0:00:26]} 32. Rc8 {[%clk 0:00:58]}  d5 {[%clk 0:00:26]} 33. Ne5 {[%clk 0:00:57]}  Nxe5 {[%clk 0:00:22]} 34. Bxe5+ {[%clk 0:00:57]}  f6 {[%clk 0:00:22]} 35. Bxf6+ {[%clk 0:00:56]}  exf6 {[%clk 0:00:21]} 36. Rxc3 {[%clk 0:00:57]}  f5 {[%clk 0:00:20]} 37. g5 {[%clk 0:00:56]}  hxg5 {[%clk 0:00:19]} 38. hxg5 {[%clk 0:00:57]}  Be7 {[%clk 0:00:19]} 39. f4 {[%clk 0:00:57]}  Bb4 {[%clk 0:00:18]} 40. Rc7+ {[%clk 0:00:57]}  Kf8 {[%clk 0:00:18]} 41. Rd7 {[%clk 0:00:58]}  Bd2 {[%clk 0:00:18]} 42. Kf2 {[%clk 0:00:58]} 1-0


[Site "https://www.chess.com"]

[Event "Titled Tuesday Blitz April 25 Late 2023"]
[White "Fajdetic, Hrvoje"]
[Black "Korkmaz, Necmettin"]
[WhiteFideId "14501945"]
[BlackFideId "6303285"]
[WhiteElo "2185"]
[BlackElo "2097"]
[Result "1/2-1/2"]
[Round "06"]
[TimeControl "180+2"]
[Date "2023.04.25"]
[WhiteClock "0:00:07"]
[BlackClock "0:00:20"]

1. d4 {[%clk 0:02:57]}  d5 {[%clk 0:02:58]} 2. Bf4 {[%clk 0:02:57]}  c5 {[%clk 0:02:52]} 3. e3 {[%clk 0:02:56]}  Nc6 {[%clk 0:02:50]} 4. Nc3 {[%clk 0:02:55]}  a6 {[%clk 0:02:45]} 5. dxc5 {[%clk 0:02:53]}  e5 {[%clk 0:02:44]} 6. Bg3 {[%clk 0:02:53]}  d4 {[%clk 0:02:42]} 7. Na4 {[%clk 0:02:41]}  Bxc5 {[%clk 0:02:18]} 8. Nxc5 {[%clk 0:02:37]}  Qa5+ {[%clk 0:02:18]} 9. Qd2 {[%clk 0:02:36]}  Qxc5 {[%clk 0:02:18]} 10. exd4 {[%clk 0:02:32]}  exd4 {[%clk 0:02:17]} 11. O-O-O {[%clk 0:02:15]}  Nf6 {[%clk 0:02:17]} 12. Nf3 {[%clk 0:02:14]}  Bg4 {[%clk 0:02:05]} 13. Be2 {[%clk 0:02:11]}  O-O {[%clk 0:01:59]} 14. Nxd4 {[%clk 0:01:40]}  Rad8 {[%clk 0:01:36]} 15. Qc3 {[%clk 0:01:11]}  Qxc3 {[%clk 0:01:26]} 16. bxc3 {[%clk 0:01:12]}  Bxe2 {[%clk 0:01:25]} 17. Nxe2 {[%clk 0:01:12]}  Ne4 {[%clk 0:01:26]} 18. f3 {[%clk 0:00:56]}  Nf6 {[%clk 0:01:22]} 19. Nd4 {[%clk 0:00:49]}  Nd5 {[%clk 0:01:15]} 20. Rd3 {[%clk 0:00:44]}  Rfe8 {[%clk 0:01:13]} 21. Nxc6 {[%clk 0:00:39]}  bxc6 {[%clk 0:01:12]} 22. Rhd1 {[%clk 0:00:39]}  Rc8 {[%clk 0:01:12]} 23. c4 {[%clk 0:00:34]}  Ne3 {[%clk 0:01:12]} 24. R1d2 {[%clk 0:00:32]}  Nxc4 {[%clk 0:01:12]} 25. Rd1 {[%clk 0:00:30]}  Ne3 {[%clk 0:01:11]} 26. R1d2 {[%clk 0:00:30]}  Nf1 {[%clk 0:01:11]} 27. Rd1 {[%clk 0:00:28]}  Nxg3 {[%clk 0:01:11]} 28. hxg3 {[%clk 0:00:28]}  h6 {[%clk 0:01:09]} 29. Rd7 {[%clk 0:00:27]}  Re2 {[%clk 0:01:08]} 30. R1d2 {[%clk 0:00:15]}  Rce8 {[%clk 0:01:07]} 31. Rxe2 {[%clk 0:00:12]}  Rxe2 {[%clk 0:01:07]} 32. Rd2 {[%clk 0:00:13]}  Rxd2 {[%clk 0:00:59]} 33. Kxd2 {[%clk 0:00:14]}  Kf8 {[%clk 0:00:59]} 34. Ke3 {[%clk 0:00:14]}  Ke7 {[%clk 0:00:59]} 35. Kd4 {[%clk 0:00:13]}  Kd6 {[%clk 0:01:00]} 36. c4 {[%clk 0:00:13]}  c5+ {[%clk 0:01:00]} 37. Ke4 {[%clk 0:00:13]}  Ke6 {[%clk 0:01:00]} 38. g4 {[%clk 0:00:13]}  g6 {[%clk 0:00:59]} 39. f4 {[%clk 0:00:09]}  f5+ {[%clk 0:00:24]} 40. gxf5+ {[%clk 0:00:10]}  gxf5+ {[%clk 0:00:24]} 41. Ke3 {[%clk 0:00:09]}  Kf6 {[%clk 0:00:24]} 42. Kf3 {[%clk 0:00:08]}  Kg7 {[%clk 0:00:23]} 43. Kg3 {[%clk 0:00:07]}  h5 {[%clk 0:00:21]} 44. Kh4 {[%clk 0:00:06]}  Kh6 {[%clk 0:00:22]} 45. Kh3 {[%clk 0:00:06]}  Kg6 {[%clk 0:00:22]} 46. Kh4 {[%clk 0:00:06]}  Kh6 {[%clk 0:00:22]} 47. Kh3 {[%clk 0:00:06]}  Kg6 {[%clk 0:00:19]} 48. Kh4 {[%clk 0:00:07]}  Kh6 {[%clk 0:00:20]} 1/2-1/2


[Site "https://www.chess.com"]

[Event "Titled Tuesday Blitz April 25 Late 2023"]
[White "Petrovic, Aleksa"]
[Black "Vifleemskaia, Svetlana"]
[WhiteFideId "967629"]
[BlackFideId "4129490"]
[WhiteElo "2309"]
[BlackElo "1930"]
[Result "1-0"]
[Round "06"]
[TimeControl "180+2"]
[Date "2023.04.25"]
[WhiteClock "0:00:18"]
[BlackClock "0:00:01"]

1. d4 {[%clk 0:03:00]}  Nf6 {[%clk 0:02:56]} 2. c4 {[%clk 0:03:01]}  e6 {[%clk 0:02:55]} 3. Nf3 {[%clk 0:03:01]}  Bb4+ {[%clk 0:02:55]} 4. Nbd2 {[%clk 0:03:00]}  b6 {[%clk 0:02:54]} 5. g3 {[%clk 0:02:59]}  Bb7 {[%clk 0:02:53]} 6. Bg2 {[%clk 0:02:59]}  O-O {[%clk 0:02:51]} 7. O-O {[%clk 0:02:59]}  Bxd2 {[%clk 0:02:46]} 8. Qxd2 {[%clk 0:02:58]}  Be4 {[%clk 0:02:45]} 9. Re1 {[%clk 0:02:57]}  a5 {[%clk 0:02:45]} 10. Bh3 {[%clk 0:02:57]}  d6 {[%clk 0:02:45]} 11. Nh4 {[%clk 0:02:53]}  h6 {[%clk 0:02:39]} 12. f3 {[%clk 0:02:52]}  Bb7 {[%clk 0:02:39]} 13. e4 {[%clk 0:02:52]}  Nbd7 {[%clk 0:02:26]} 14. b3 {[%clk 0:02:51]}  a4 {[%clk 0:02:20]} 15. Bb2 {[%clk 0:02:51]}  axb3 {[%clk 0:02:15]} 16. axb3 {[%clk 0:02:50]}  b5 {[%clk 0:02:10]} 17. Bf1 {[%clk 0:02:05]}  bxc4 {[%clk 0:02:03]} 18. bxc4 {[%clk 0:02:06]}  c5 {[%clk 0:01:54]} 19. d5 {[%clk 0:02:03]}  Rxa1 {[%clk 0:01:32]} 20. Rxa1 {[%clk 0:02:01]}  Qb6 {[%clk 0:01:31]} 21. Bh3 {[%clk 0:01:56]}  Ne5 {[%clk 0:01:23]} 22. Bxe5 {[%clk 0:01:44]}  dxe5 {[%clk 0:01:22]} 23. dxe6 {[%clk 0:01:45]}  fxe6 {[%clk 0:01:21]} 24. Ng6 {[%clk 0:01:41]}  Rd8 {[%clk 0:01:16]} 25. Qc3 {[%clk 0:01:36]}  Rd4 {[%clk 0:01:11]} 26. Nxe5 {[%clk 0:01:32]}  Qd6 {[%clk 0:01:03]} 27. Ng4 {[%clk 0:01:09]}  Nh5 {[%clk 0:00:47]} 28. Bg2 {[%clk 0:00:59]}  Rd1+ {[%clk 0:00:25]} 29. Rxd1 {[%clk 0:00:58]}  Qxd1+ {[%clk 0:00:26]} 30. Kf2 {[%clk 0:00:58]}  Qb1 {[%clk 0:00:19]} 31. Ne3 {[%clk 0:00:56]}  Nf6 {[%clk 0:00:17]} 32. Qc2 {[%clk 0:00:53]}  Qb4 {[%clk 0:00:16]} 33. e5 {[%clk 0:00:51]}  Nd7 {[%clk 0:00:14]} 34. f4 {[%clk 0:00:52]}  Bxg2 {[%clk 0:00:12]} 35. Kxg2 {[%clk 0:00:52]}  Qb7+ {[%clk 0:00:11]} 36. Kh3 {[%clk 0:00:51]}  Qb4 {[%clk 0:00:08]} 37. Qg6 {[%clk 0:00:47]}  Nf8 {[%clk 0:00:08]} 38. Qe4 {[%clk 0:00:47]}  Qd2 {[%clk 0:00:08]} 39. f5 {[%clk 0:00:46]}  exf5 {[%clk 0:00:04]} 40. Nxf5 {[%clk 0:00:47]}  Qd1 {[%clk 0:00:02]} 41. e6 {[%clk 0:00:44]}  Qf1+ {[%clk 0:00:02]} 42. Kg4 {[%clk 0:00:37]}  Ng6 {[%clk 0:00:02]} 43. h4 {[%clk 0:00:21]}  Qd1+ {[%clk 0:00:01]} 44. Kh3 {[%clk 0:00:18]} 1-0


[Site "https://www.chess.com"]

[Event "Titled Tuesday Blitz April 25 Late 2023"]
[White "Seletsky, Grigory"]
[Black "Albuquerque Junior,Wellington S."]
[WhiteFideId "14112191"]
[BlackFideId "2151480"]
[WhiteElo "2490"]
[BlackElo "2109"]
[Result "1/2-1/2"]
[Round "06"]
[TimeControl "180+2"]
[Date "2023.04.25"]
[WhiteClock "0:00:37"]
[BlackClock "0:00:07"]

1. e4 {[%clk 0:02:54]}  c5 {[%clk 0:03:00]} 2. Nf3 {[%clk 0:02:52]}  d6 {[%clk 0:03:00]} 3. d4 {[%clk 0:02:51]}  cxd4 {[%clk 0:03:01]} 4. Nxd4 {[%clk 0:02:51]}  Nf6 {[%clk 0:03:02]} 5. Nc3 {[%clk 0:02:51]}  Nc6 {[%clk 0:03:02]} 6. Be3 {[%clk 0:02:51]}  Ng4 {[%clk 0:03:02]} 7. Nxc6 {[%clk 0:02:50]}  bxc6 {[%clk 0:03:01]} 8. Bc1 {[%clk 0:02:47]}  Qb6 {[%clk 0:02:56]} 9. Qe2 {[%clk 0:02:42]}  a5 {[%clk 0:02:46]} 10. h3 {[%clk 0:02:27]}  Ne5 {[%clk 0:02:45]} 11. Qe3 {[%clk 0:02:23]}  Qxe3+ {[%clk 0:02:34]} 12. Bxe3 {[%clk 0:02:23]}  Ba6 {[%clk 0:02:34]} 13. O-O-O {[%clk 0:02:18]}  Bxf1 {[%clk 0:02:34]} 14. Rhxf1 {[%clk 0:02:17]}  g6 {[%clk 0:02:24]} 15. f4 {[%clk 0:02:11]}  Nd7 {[%clk 0:02:20]} 16. Bd4 {[%clk 0:02:09]}  Rg8 {[%clk 0:02:08]} 17. b3 {[%clk 0:01:58]}  Bg7 {[%clk 0:02:04]} 18. Bxg7 {[%clk 0:01:57]}  Rxg7 {[%clk 0:02:05]} 19. Rde1 {[%clk 0:01:48]}  g5 {[%clk 0:01:05]} 20. f5 {[%clk 0:01:43]}  h5 {[%clk 0:00:55]} 21. Kb2 {[%clk 0:01:36]}  g4 {[%clk 0:00:53]} 22. h4 {[%clk 0:01:35]}  f6 {[%clk 0:00:47]} 23. Ne2 {[%clk 0:01:32]}  Nc5 {[%clk 0:00:43]} 24. Nf4 {[%clk 0:01:26]}  Rh7 {[%clk 0:00:43]} 25. Nd3 {[%clk 0:01:21]}  Nxd3+ {[%clk 0:00:32]} 26. cxd3 {[%clk 0:01:21]}  c5 {[%clk 0:00:32]} 27. Rc1 {[%clk 0:01:13]}  a4 {[%clk 0:00:28]} 28. Rc4 {[%clk 0:01:13]}  axb3 {[%clk 0:00:29]} 29. axb3 {[%clk 0:01:12]}  Kd7 {[%clk 0:00:27]} 30. g3 {[%clk 0:00:54]}  Rhh8 {[%clk 0:00:25]} 31. Ra1 {[%clk 0:00:54]}  Rxa1 {[%clk 0:00:25]} 32. Kxa1 {[%clk 0:00:53]}  Ra8+ {[%clk 0:00:22]} 33. Ra4 {[%clk 0:00:53]}  Rb8 {[%clk 0:00:15]} 34. Kb2 {[%clk 0:00:53]}  Ke8 {[%clk 0:00:07]} 35. Kc3 {[%clk 0:00:49]}  Kf7 {[%clk 0:00:08]} 36. Ra7 {[%clk 0:00:42]}  Rb4 {[%clk 0:00:07]} 37. Ra4 {[%clk 0:00:42]}  Rb8 {[%clk 0:00:07]} 38. Ra3 {[%clk 0:00:41]}  Rb4 {[%clk 0:00:07]} 39. Ra4 {[%clk 0:00:37]}  Rb8 {[%clk 0:00:07]} 1/2-1/2


[Site "https://www.chess.com"]